fUSD/lending_fUSD_20241021
["ID","MTS","AMOUNT","RATE_DAILY","PERIOD"]
[340601115,1729519832000,-150.0,0.00024797,2]
[340601116,1729519832012,-1000.0,0.000248,2]
[340601117,1729519832024,-277.58059227,0.00024803,2]
[340601118,1729519832034,-1306.9229,0.00024818,2]
[340601119,1729519832044,-1000.0,0.0002482,2]
[340601120,1729519832053,-216.13340107,0.0002482,2]
[340601121,1729519832063,-2500.0,0.0002482,2]
[340601122,1729519832073,-500.0,0.0002483,3]
[340601123,1729519832082,-500.0,0.0002483,3]
[340601124,1729519832092,-500.0,0.0002483,3]
[340601125,1729519832102,-500.0,0.0002483,3]
[340601126,1729519832111,-500.0,0.0002483,3]
[340601127,1729519832121,-522.62,0.0002483,3]
[340601128,1729519832131,-625.87551735,0.0002483,3]
[340601129,1729519832145,-500.0,0.0002483,3]
[340601130,1729519832155,-1634.01,0.0002483,3]
[340601131,1729519832164,-500.0,0.0002483,3]
[340601132,1729519832174,-510.67,0.0002483,3]
[340601133,1729519832183,-2313.68,0.0002483,3]
[340601134,1729519832193,-500.0,0.0002483,3]
[340601135,1729519832203,-500.0,0.0002483,3]
[340601136,1729519832212,-1076.07,0.0002483,3]
[340601137,1729519832233,-500.0,0.0002483,3]
[340601138,1729519832245,-2161.29,0.0002483,3]
[340601139,1729519832255,-500.0,0.0002483,3]
[340601140,1729519832265,-2452.37,0.0002483,3]
[340601141,1729519832275,-2012.41,0.0002483,3]
[340601142,1729519832284,-500.0,0.0002483,3]
[340601143,1729519832294,-508.48,0.0002483,3]
[340601144,1729519832304,-500.0,0.0002483,3]
[340601145,1729519832314,-362.48587947,0.0002483,3]
[340601146,1729519832324,-1485.29,0.0002483,3]
[340601147,1729519832333,-536.09592982,0.0002483,3]
[340601148,1729519832344,-500.0,0.0002483,3]
[340601149,1729519832354,-1539.0,0.0002483,3]
[340601150,1729519832364,-500.0,0.0002483,3]
[340601151,1729519832375,-501.11533037,0.0002483,3]
[340601152,1729519832385,-500.0,0.0002483,3]
[340601153,1729519832398,-150.0,0.0002483,2]
[340601154,1729519832408,-500.0,0.0002483,2]
[340601155,1729519832418,-500.0,0.0002483,2]
[340601156,1729519832429,-500.0,0.0002483,2]
[340601157,1729519832439,-7500.0,0.0002483,2]
[340601158,1729519832449,-500.0,0.00024831,2]
[340601159,1729519832459,-2954.3327,0.00024831,2]
[340601160,1729519832469,-906.78,0.00024877,30]
[340601161,1729519832479,-668.0,0.000249,3]
[340601162,1729519832490,-42274.2047118,0.00024918,4]
[340601163,1729519832503,-25373.79528823,0.00024918,4]
[340601164,1729519832513,-954.97,0.0002492,3]
[340601165,1729519832523,-500.0,0.0002492,3]
[340601166,1729519832534,-500.0,0.0002492,3]
[340601167,1729519832544,-257.92858264,0.0002492,3]
[340601168,1729519832554,-500.0,0.0002492,3]
[340601169,1729519832564,-314.3059911,0.0002492,3]
[340601170,1729519832574,-522.62,0.0002492,3]
[340601171,1729519832584,-522.62,0.0002492,3]
[340601172,1729519832593,-500.0,0.0002492,3]
[340601173,1729519832603,-500.0,0.0002492,3]
[340601174,1729519832613,-1634.01,0.0002492,3]
[340601175,1729519832623,-1634.01,0.0002492,3]
[340601176,1729519832633,-500.0,0.0002492,3]
[340601177,1729519832645,-2313.68,0.0002492,3]
[340601178,1729519832655,-2313.68,0.0002492,3]
[340601179,1729519832665,-500.0,0.0002492,3]
[340601180,1729519832675,-500.0,0.0002492,3]
[340601181,1729519832685,-500.0,0.0002492,3]
[340601182,1729519832695,-500.0,0.0002492,3]
[340601183,1729519832705,-1076.07,0.0002492,3]
[340601184,1729519832716,-1076.07,0.0002492,3]
[340601185,1729519832726,-500.0,0.0002492,3]
[340601186,1729519832736,-459.8761977,0.0002492,3]
[340601187,1729519832746,-2161.29,0.0002492,3]
[340601188,1729519832755,-2161.29,0.0002492,3]
[340601189,1729519832765,-500.0,0.0002492,3]
[340601190,1729519832775,-500.0,0.0002492,3]
[340601191,1729519832785,-2452.37,0.0002492,3]
[340601192,1729519832796,-2012.41,0.0002492,3]
[340601193,1729519832806,-2012.41,0.0002492,3]
[340601194,1729519832817,-500.0,0.0002492,3]
[340601195,1729519832826,-500.0,0.0002492,3]
[340601196,1729519832836,-508.48,0.0002492,3]
[340601197,1729519832845,-508.48,0.0002492,3]
[340601198,1729519832855,-500.0,0.0002492,3]
[340601199,1729519832865,-500.0,0.0002492,3]
[340601200,1729519832875,-1485.29,0.0002492,3]
[340601201,1729519832885,-1485.29,0.0002492,3]
[340601202,1729519832898,-500.0,0.0002492,3]
[340601203,1729519832908,-1539.0,0.0002492,3]
[340601204,1729519832918,-1539.0,0.0002492,3]
[340601205,1729519832930,-500.0,0.0002492,3]
[340601206,1729519832940,-500.0,0.0002492,3]
[340601207,1729519832950,-5865.03497205,0.0002492,5]
[340601208,1729519832966,-337.47714,0.0002492,5]
[340601213,1729519838039,-3096.93491016,0.0002492,5]
[340601214,1729519838053,-260.98299383,0.0002492,5]
[340601215,1729519838066,-1053.36346567,0.0002492,5]
[340601216,1729519838078,-317.30369211,0.0002492,5]
[340601217,1729519838164,-51950.78610868,0.0002492,5]
[340601218,1729519838174,-154.31,0.0002492,2]
[340601219,1729519838184,-152.41,0.0002492,2]
[340601220,1729519838194,-500.0,0.00024929,3]
[340601221,1729519838203,-500.0,0.00024929,3]
[340601222,1729519838212,-500.0,0.00024929,3]
[340601223,1729519838222,-500.0,0.00024929,3]
[340601224,1729519838231,-500.0,0.00024929,3]
[340601225,1729519838241,-954.97,0.0002493,3]
[340601226,1729519838251,-954.97,0.0002493,3]
[340601227,1729519838261,-954.97,0.0002493,3]
[340601228,1729519838270,-954.97,0.0002493,3]
[340601229,1729519838280,-954.97,0.0002493,3]
[340601230,1729519838290,-954.97,0.0002493,3]
[340601231,1729519838300,-954.97,0.0002493,3]
[340601232,1729519838311,-954.97,0.0002493,3]
[340601233,1729519838320,-954.97,0.0002493,3]
[340601234,1729519838331,-954.97,0.0002493,3]
[340601235,1729519838340,-954.97,0.0002493,3]
[340601236,1729519838349,-954.97,0.0002493,3]
[340601237,1729519838359,-954.97,0.0002493,3]
[340601238,1729519838369,-954.97,0.0002493,3]
[340601239,1729519838379,-954.97,0.0002493,3]
[340601240,1729519838388,-954.97,0.0002493,3]
[340601241,1729519838400,-954.97,0.0002493,3]
[340601242,1729519838410,-954.97,0.0002493,3]
[340601243,1729519838420,-954.97,0.0002493,3]
[340601244,1729519838429,-954.97,0.0002493,3]
[340601245,1729519838440,-954.97,0.0002493,3]
[340601246,1729519838449,-912.25454525,0.0002493,3]
[340601247,1729519838462,-42.86176273,0.0002493,3]
[340601248,1729519838471,-522.62,0.0002493,3]
[340601249,1729519838481,-522.62,0.0002493,3]
[340601250,1729519838491,-522.62,0.0002493,3]
[340601251,1729519838501,-522.62,0.0002493,3]
[340601252,1729519838510,-522.62,0.0002493,3]
[340601253,1729519838520,-522.62,0.0002493,3]
[340601254,1729519838529,-522.62,0.0002493,3]
[340601255,1729519838539,-522.62,0.0002493,3]
[340601256,1729519838549,-522.62,0.0002493,3]
[340601257,1729519838558,-522.62,0.0002493,3]
[340601258,1729519838568,-522.62,0.0002493,3]
[340601259,1729519838578,-522.62,0.0002493,3]
[340601260,1729519838587,-522.62,0.0002493,3]
[340601261,1729519838596,-522.62,0.0002493,3]
[340601262,1729519838606,-501.46655388,0.0002493,3]
[340601263,1729519838619,-21.15344612,0.0002493,3]
[340601264,1729519838629,-522.62,0.0002493,3]
[340601265,1729519838639,-522.62,0.0002493,3]
[340601266,1729519838649,-522.62,0.0002493,3]
[340601267,1729519838658,-522.62,0.0002493,3]
[340601268,1729519838668,-522.62,0.0002493,3]
[340601269,1729519838678,-522.76088109,0.0002493,3]
[340601270,1729519838688,-500.0,0.0002493,3]
[340601271,1729519838698,-500.0,0.0002493,3]
[340601272,1729519838707,-500.0,0.0002493,3]
[340601273,1729519838717,-500.0,0.0002493,3]
[340601274,1729519838727,-500.0,0.0002493,3]
[340601275,1729519838737,-500.0,0.0002493,3]
[340601276,1729519838747,-500.0,0.0002493,3]
[340601277,1729519838757,-500.0,0.0002493,3]
[340601278,1729519838767,-500.0,0.0002493,3]
[340601279,1729519838776,-500.0,0.0002493,3]
[340601280,1729519838785,-500.0,0.0002493,3]
[340601281,1729519838795,-171.26882429,0.0002493,3]
[340601282,1729519838804,-1634.01,0.0002493,3]
[340601283,1729519838814,-1634.01,0.0002493,3]
[340601284,1729519838824,-1634.01,0.0002493,3]
[340601285,1729519838834,-1634.01,0.0002493,3]
[340601286,1729519838843,-1634.01,0.0002493,3]
[340601287,1729519838854,-1634.01,0.0002493,3]
[340601288,1729519838863,-1634.01,0.0002493,3]
[340601289,1729519838873,-1634.01,0.0002493,3]
[340601290,1729519838883,-1634.01,0.0002493,3]
[340601291,1729519838892,-1634.01,0.0002493,3]
[340601293,1729519838904,-1634.01,0.0002493,3]
[340601294,1729519838914,-1634.01,0.0002493,3]
[340601295,1729519838925,-1634.01,0.0002493,3]
[340601296,1729519838937,-1634.01,0.0002493,3]
[340601297,1729519838947,-1634.01,0.0002493,3]
[340601298,1729519838957,-1634.01,0.0002493,3]
[340601299,1729519838967,-1634.01,0.0002493,3]
[340601300,1729519838977,-1634.01,0.0002493,3]
[340601301,1729519838987,-1634.01,0.0002493,3]
[340601302,1729519838998,-1634.01,0.0002493,3]
[340601303,1729519839008,-1634.09,0.0002493,3]
[340601304,1729519839018,-500.0,0.0002493,3]
[340601305,1729519839029,-500.0,0.0002493,3]
[340601306,1729519839038,-500.0,0.0002493,3]
[340601308,1729519839048,-500.0,0.0002493,3]
[340601310,1729519839058,-500.0,0.0002493,3]
[340601312,1729519839067,-500.0,0.0002493,3]
[340601314,1729519839077,-500.0,0.0002493,3]
[340601316,1729519839087,-500.0,0.0002493,3]
[340601317,1729519839096,-500.0,0.0002493,3]
[340601319,1729519839105,-500.0,0.0002493,3]
[340601321,1729519839116,-500.0,0.0002493,3]
[340601323,1729519839125,-500.0,0.0002493,3]
[340601325,1729519839135,-500.0,0.0002493,3]
[340601327,1729519839144,-500.0,0.0002493,3]
[340601330,1729519839156,-500.0,0.0002493,3]
[340601331,1729519839165,-500.0,0.0002493,3]
[340601333,1729519839175,-500.0,0.0002493,3]
[340601336,1729519839185,-500.0,0.0002493,3]
[340601338,1729519839194,-500.0,0.0002493,3]
[340601340,1729519839204,-634.71706321,0.0002493,3]
[340601342,1729519839214,-2313.68,0.0002493,3]
[340601344,1729519839223,-2313.68,0.0002493,3]
[340601346,1729519839233,-115.34978529,0.0002493,3]
[340601364,1729519839388,-1353.58223,0.0002493,3]
[340601367,1729519839401,-844.74798471,0.0002493,3]
[340601369,1729519839411,-2313.68,0.0002493,3]
[340601371,1729519839421,-2313.68,0.0002493,3]
[340601373,1729519839431,-2313.68,0.0002493,3]
[340601375,1729519839440,-632.33,0.0002493,3]
[340601377,1729519839450,-2313.68,0.0002493,3]
[340601379,1729519839459,-2232.53285868,0.0002493,3]
[340601381,1729519839471,-81.14714132,0.0002493,3]
[340601383,1729519839481,-1786.91905868,0.0002493,3]
[340601385,1729519839493,-337.11,0.0002493,3]
[340601388,1729519839504,-189.65094132,0.0002493,3]
[340601390,1729519839514,-2313.68,0.0002493,3]
[340601392,1729519839524,-2313.68,0.0002493,3]
[340601394,1729519839533,-2313.68,0.0002493,3]
[340601396,1729519839543,-970.20185868,0.0002493,3]
[340601398,1729519839555,-1121.2757229,0.0002493,3]
[340601401,1729519839567,-222.20241842,0.0002493,3]
[340601403,1729519839576,-451.25258158,0.0002493,3]
[340601405,1729519839587,-1862.42741842,0.0002493,3]
[340601407,1729519839597,-1289.45967132,0.0002493,3]
[340601410,1729519839609,-1024.22032868,0.0002493,3]
[340601412,1729519839619,-719.44080968,0.0002493,3]
[340601414,1729519839631,-696.23765753,0.0002493,3]
[340601426,1729519839749,-267.74,0.0002493,3]
[340601429,1729519839762,-630.26153279,0.0002493,3]
[340601431,1729519839773,-43.44846721,0.0002493,3]
[340601441,1729519839863,-1344.34,0.0002493,3]
[340601444,1729519839892,-925.89153279,0.0002493,3]
[340601446,1729519839906,-2313.68,0.0002493,3]
[340601449,1729519839916,-2313.68,0.0002493,3]
[340601450,1729519839927,-2313.68,0.0002493,3]
[340601452,1729519839939,-2313.8,0.0002493,3]
[340601454,1729519839948,-500.0,0.0002493,3]
[340601456,1729519839958,-500.0,0.0002493,3]
[340601458,1729519839968,-500.0,0.0002493,3]
[340601460,1729519839980,-500.0,0.0002493,3]
[340601462,1729519839991,-500.0,0.0002493,3]
[340601464,1729519840000,-500.0,0.0002493,3]
[340601466,1729519840011,-500.0,0.0002493,3]
[340601468,1729519840021,-500.0,0.0002493,3]
[340601470,1729519840030,-500.0,0.0002493,3]
[340601472,1729519840039,-500.0,0.0002493,3]
[340601474,1729519840049,-500.0,0.0002493,3]
[340601476,1729519840058,-500.0,0.0002493,3]
[340601478,1729519840068,-500.0,0.0002493,3]
[340601480,1729519840078,-500.0,0.0002493,3]
[340601482,1729519840087,-500.0,0.0002493,3]
[340601484,1729519840097,-500.0,0.0002493,3]
[340601486,1729519840106,-458.45633459,0.0002493,3]
[340601488,1729519840116,-1076.07,0.0002493,3]
[340601490,1729519840126,-1076.07,0.0002493,3]
[340601492,1729519840135,-1076.07,0.0002493,3]
[340601494,1729519840145,-1076.07,0.0002493,3]
[340601496,1729519840158,-1076.07,0.0002493,3]
[340601498,1729519840167,-1076.07,0.0002493,3]
[340601500,1729519840178,-1022.14193304,0.0002493,3]
[340601502,1729519840190,-53.92806696,0.0002493,3]
[340601504,1729519840200,-678.07351943,0.0002493,3]
[340601506,1729519840212,-397.99648057,0.0002493,3]
[340601508,1729519840222,-1076.07,0.0002493,3]
[340601510,1729519840232,-1076.07,0.0002493,3]
[340601512,1729519840241,-12.37178515,0.0002493,3]
[340601685,1729519842846,-1063.69821485,0.0002493,3]
[340601686,1729519842856,-1051.0731741,0.0002493,3]
[340601687,1729519842867,-24.9968259,0.0002493,3]
[340601688,1729519842877,-1076.07,0.0002493,3]
[340601689,1729519842886,-1076.07,0.0002493,3]
[340601690,1729519842896,-482.76841675,0.0002493,3]
[340601691,1729519842910,-593.30158325,0.0002493,3]
[340601692,1729519842921,-1076.07,0.0002493,3]
[340601693,1729519842933,-1076.07,0.0002493,3]
[340601694,1729519842944,-1076.07,0.0002493,3]
[340601695,1729519842953,-1076.07,0.0002493,3]
[340601696,1729519842964,-1076.07,0.0002493,3]
[340601697,1729519842974,-1076.14043871,0.0002493,3]
[340601698,1729519842984,-2161.29,0.0002493,3]
[340601699,1729519842994,-2161.29,0.0002493,3]
[340601700,1729519843004,-2161.29,0.0002493,3]
[340601701,1729519843014,-2161.29,0.0002493,3]
[340601706,1729519843236,-2161.29,0.0002493,3]
[340601708,1729519843246,-2161.29,0.0002493,3]
[340601710,1729519843256,-2161.29,0.0002493,3]
[340601712,1729519843265,-2161.29,0.0002493,3]
[340601714,1729519843274,-2161.29,0.0002493,3]
[340601716,1729519843285,-2161.29,0.0002493,3]
[340601718,1729519843294,-2161.29,0.0002493,3]
[340601720,1729519843304,-2161.29,0.0002493,3]
[340601722,1729519843314,-2161.29,0.0002493,3]
[340601724,1729519843324,-2161.29,0.0002493,3]
[340601726,1729519843334,-2161.29,0.0002493,3]
[340601728,1729519843343,-2161.29,0.0002493,3]
[340601730,1729519843353,-2161.29,0.0002493,3]
[340601732,1729519843363,-2161.29,0.0002493,3]
[340601734,1729519843373,-2161.29,0.0002493,3]
[340601735,1729519843382,-2161.29,0.0002493,3]
[340601736,1729519843392,-2161.40914247,0.0002493,3]
[340601737,1729519843405,-500.0,0.0002493,3]
[340601738,1729519843414,-500.0,0.0002493,3]
[340601739,1729519843424,-500.0,0.0002493,3]
[340601740,1729519843433,-500.0,0.0002493,3]
[340601741,1729519843443,-500.0,0.0002493,3]
[340601742,1729519843453,-500.0,0.0002493,3]
[340601743,1729519843463,-500.0,0.0002493,3]
[340601744,1729519843472,-500.0,0.0002493,3]
[340601745,1729519843482,-500.0,0.0002493,3]
[340601746,1729519843492,-500.0,0.0002493,3]
[340601747,1729519843502,-500.0,0.0002493,3]
[340601748,1729519843511,-500.0,0.0002493,3]
[340601749,1729519843521,-500.0,0.0002493,3]
[340601750,1729519843530,-500.0,0.0002493,3]
[340601751,1729519843540,-500.0,0.0002493,3]
[340601752,1729519843549,-500.0,0.0002493,3]
[340601753,1729519843559,-500.0,0.0002493,3]
[340601754,1729519843568,-500.0,0.0002493,3]
[340601755,1729519843577,-500.0,0.0002493,3]
[340601756,1729519843587,-500.0,0.0002493,3]
[340601757,1729519843596,-396.09834623,0.0002493,3]
[340601759,1729519843605,-2452.37,0.0002493,3]
[340601761,1729519843615,-2452.37,0.0002493,3]
[340601763,1729519843624,-2452.37,0.0002493,3]
[340601765,1729519843634,-2452.37,0.0002493,3]
[340601767,1729519843645,-2452.37,0.0002493,3]
[340601769,1729519843659,-2452.37,0.0002493,3]
[340601772,1729519843670,-2452.37,0.0002493,3]
[340601774,1729519843681,-2452.37,0.0002493,3]
[340601776,1729519843692,-2452.37,0.0002493,3]
[340601778,1729519843702,-2452.37,0.0002493,3]
[340601780,1729519843712,-2452.37,0.0002493,3]
[340601782,1729519843722,-2452.37,0.0002493,3]
[340601784,1729519843732,-2452.37,0.0002493,3]
[340601786,1729519843741,-2452.37,0.0002493,3]
[340601788,1729519843751,-2452.37,0.0002493,3]
[340601790,1729519843760,-2452.37,0.0002493,3]
[340601792,1729519843770,-2452.37,0.0002493,3]
[340601793,1729519843779,-2452.37,0.0002493,3]
[340601796,1729519843789,-2452.37,0.0002493,3]
[340601798,1729519843798,-2452.37,0.0002493,3]
[340601800,1729519843807,-2452.37,0.0002493,3]
[340601802,1729519843817,-2452.41937292,0.0002493,3]
[340601804,1729519843826,-2012.41,0.0002493,3]
[340601806,1729519843835,-2012.41,0.0002493,3]
[340601808,1729519843845,-2012.41,0.0002493,3]
[340601810,1729519843854,-2012.41,0.0002493,3]
[340601812,1729519843864,-2012.41,0.0002493,3]
[340601814,1729519843873,-2012.41,0.0002493,3]
[340601816,1729519843883,-2012.41,0.0002493,3]
[340601818,1729519843892,-2012.41,0.0002493,3]
[340601820,1729519843903,-2012.41,0.0002493,3]
[340601822,1729519843912,-2012.41,0.0002493,3]
[340601824,1729519843923,-2012.41,0.0002493,3]
[340601826,1729519843935,-2012.41,0.0002493,3]
[340601828,1729519843944,-2012.41,0.0002493,3]
[340601830,1729519843954,-2012.41,0.0002493,3]
[340601832,1729519843963,-2012.41,0.0002493,3]
[340601833,1729519843974,-2012.41,0.0002493,3]
[340601835,1729519843983,-2012.41,0.0002493,3]
[340601837,1729519843995,-2012.41,0.0002493,3]
[340601839,1729519844005,-2012.41,0.0002493,3]
[340601841,1729519844017,-2012.41,0.0002493,3]
[340601843,1729519844027,-2012.4131868,0.0002493,3]
[340601845,1729519844037,-500.0,0.0002493,3]
[340601847,1729519844047,-500.0,0.0002493,3]
[340601849,1729519844056,-500.0,0.0002493,3]
[340601851,1729519844065,-361.58144755,0.0002493,3]
[340601853,1729519844075,-508.48,0.0002493,3]
[340601855,1729519844084,-508.48,0.0002493,3]
[340601857,1729519844094,-508.48,0.0002493,3]
[340601859,1729519844104,-508.48,0.0002493,3]
[340601861,1729519844114,-508.48,0.0002493,3]
[340601863,1729519844123,-508.48,0.0002493,3]
[340601865,1729519844133,-508.48,0.0002493,3]
[340601867,1729519844142,-508.48,0.0002493,3]
[340601869,1729519844153,-508.48,0.0002493,3]
[340601871,1729519844162,-508.48,0.0002493,3]
[340601873,1729519844171,-508.48,0.0002493,3]
[340601875,1729519844180,-508.48,0.0002493,3]
[340601877,1729519844190,-508.48,0.0002493,3]
[340601879,1729519844199,-508.48,0.0002493,3]
[340601881,1729519844208,-508.48,0.0002493,3]
[340601883,1729519844218,-508.48,0.0002493,3]
[340601885,1729519844227,-508.48,0.0002493,3]
[340601887,1729519844236,-508.48,0.0002493,3]
[340601889,1729519844246,-508.48,0.0002493,3]
[340601891,1729519844256,-508.48,0.0002493,3]
[340601893,1729519844265,-508.49070401,0.0002493,3]
[340601895,1729519844275,-500.0,0.0002493,3]
[340601897,1729519844284,-324.67096717,0.0002493,3]
[340601899,1729519844295,-375.0,0.0002493,2]
[340601901,1729519844304,-1485.29,0.0002493,3]
[340601903,1729519844314,-1485.29,0.0002493,3]
[340601905,1729519844324,-1485.29,0.0002493,3]
[340601907,1729519844334,-1485.29,0.0002493,3]
[340601909,1729519844343,-1485.29,0.0002493,3]
[340601911,1729519844354,-1485.29,0.0002493,3]
[340601913,1729519844364,-1485.29,0.0002493,3]
[340601915,1729519844373,-1485.29,0.0002493,3]
[340601917,1729519844383,-1485.29,0.0002493,3]
[340601919,1729519844393,-1485.29,0.0002493,3]
[340601921,1729519844403,-1485.29,0.0002493,3]
[340601923,1729519844413,-1485.29,0.0002493,3]
[340601925,1729519844423,-1485.29,0.0002493,3]
[340601927,1729519844432,-1485.29,0.0002493,3]
[340601929,1729519844442,-1485.29,0.0002493,3]
[340601931,1729519844451,-1485.29,0.0002493,3]
[340601933,1729519844461,-1485.29,0.0002493,3]
[340601935,1729519844471,-1485.29,0.0002493,3]
[340601937,1729519844481,-1485.29,0.0002493,3]
[340601939,1729519844492,-1485.29,0.0002493,3]
[340601941,1729519844502,-1485.3009961,0.0002493,3]
[340601943,1729519844512,-500.0,0.0002493,3]
[340601945,1729519844521,-500.0,0.0002493,3]
[340601947,1729519844531,-500.0,0.0002493,3]
[340601949,1729519844540,-283.78053463,0.0002493,3]
[340601951,1729519844550,-1539.0,0.0002493,3]
[340601953,1729519844559,-500.0,0.0002493,3]
[340601955,1729519844569,-1539.0,0.0002493,3]
[340601957,1729519844578,-500.0,0.0002493,3]
[340601959,1729519844588,-1539.0,0.0002493,3]
[340601961,1729519844597,-1539.0,0.0002493,3]
[340601963,1729519844607,-500.0,0.0002493,3]
[340601965,1729519844616,-1539.0,0.0002493,3]
[340601967,1729519844627,-500.0,0.0002493,3]
[340601969,1729519844636,-417.82762547,0.0002493,3]
[340601971,1729519844646,-1539.0,0.0002493,3]
[340601973,1729519844658,-1539.0,0.0002493,3]
[340601975,1729519844668,-1539.0,0.0002493,3]
[340601977,1729519844678,-1539.0,0.0002493,3]
[340601979,1729519844688,-1539.0,0.0002493,3]
[340601981,1729519844698,-1539.0,0.0002493,3]
[340601983,1729519844709,-1539.0,0.0002493,3]
[340601985,1729519844719,-1539.0,0.0002493,3]
[340601987,1729519844729,-1539.0,0.0002493,3]
[340601989,1729519844739,-1539.0,0.0002493,3]
[340601991,1729519844750,-1539.0,0.0002493,3]
[340601993,1729519844761,-1539.0,0.0002493,3]
[340601996,1729519844773,-1539.0,0.0002493,3]
[340601998,1729519844783,-1539.0,0.0002493,3]
[340601999,1729519844793,-1539.0,0.0002493,3]
[340602001,1729519844803,-1539.06,0.0002493,3]
[340602003,1729519844812,-500.0,0.0002493,3]
[340602005,1729519844822,-500.0,0.0002493,3]
[340602007,1729519844831,-519.71375003,0.0002493,3]
[340602009,1729519844841,-150.0,0.00024941,2]
[340602011,1729519844851,-7860.23541031,0.0002497,5]
[340602013,1729519844860,-7860.23541031,0.0002498,5]
[340602015,1729519844870,-500.0,0.00024989,3]
[340602017,1729519844880,-522.33983822,0.00024989,3]
[340602019,1729519844890,-481.93633026,0.00024989,2]
[340602021,1729519844900,-94322.8249237,0.0002499,5]
[340602023,1729519844910,-154.31,0.0002499,2]
[340602025,1729519844920,-70742.1186928,0.0002499,5]
[340602027,1729519844931,-154.31,0.0002499,2]
[340602029,1729519844944,-154.31,0.0002499,2]
[340602031,1729519844953,-154.31,0.0002499,2]
[340602033,1729519844963,-154.31,0.0002499,2]
[340602035,1729519844972,-154.31,0.0002499,2]
[340602037,1729519844981,-154.31,0.0002499,2]
[340602039,1729519844992,-154.31,0.0002499,2]
[340602041,1729519845002,-154.31,0.0002499,2]
[340602043,1729519845012,-154.31,0.0002499,2]
[340602045,1729519845022,-154.31,0.0002499,2]
[340602047,1729519845032,-154.31,0.0002499,2]
[340602049,1729519845043,-154.31,0.0002499,2]
[340602051,1729519845055,-154.31,0.0002499,2]
[340602053,1729519845066,-154.31,0.0002499,2]
[340602055,1729519845077,-154.31,0.0002499,2]
[340602057,1729519845087,-500.0,0.00024999,3]
[340602059,1729519845098,-500.0,0.00024999,3]
[340602061,1729519845108,-500.0,0.00024999,3]
[340602063,1729519845117,-520.75324887,0.00024999,3]
[340602065,1729519845127,-892.0,0.00024999,2]
[340602067,1729519845137,-850.38479849,0.00025,7]
[340602069,1729519845149,-190885.19289726,0.00025,17]
[340602071,1729519845160,-735640.92332584,0.00025,2]
[340602074,1729519845176,-10170.07,0.00025,2]
[340602076,1729519845188,-677.6588046,0.00025,2]
[340602078,1729519845201,-7159.05149258,0.00025,2]
[340602080,1729519845213,-1167.13164113,0.00025,2]
[340602083,1729519845225,-14370.62525717,0.00025,2]
[340602085,1729519845237,-1347.48,0.00025,2]
[340602131,1729519845633,-709.72687854,0.00025,2]
[340602133,1729519845646,-1680.575,0.00025,2]
[340602137,1729519845660,-33663.2,0.00025,2]
[340602177,1729519846023,-1955.2387,0.00025,2]
[340602405,1729519868567,160.04,0.00025082,120]
[340602410,1729520836216,400.0,0.000107,3]
[340602411,1729520838336,900.0,0.000108,3]
[340602412,1729520840446,1400.0,0.000109,3]
[340602416,1729520919231,150.0,0.000115,3]
[340602417,1729520944025,158.92,0.0001379,30]
[340602419,1729521015261,-1941.69291641,0.00010859,2]
[340602420,1729521015295,-161.8617742,0.000109,2]